Workbook

Sheet annual combined rate calc
C2: Bill | D2: =SUM(G8,F10:F18) -> 40.05 | F2: Rate Calculator
F3: 1 | G3: Months to Calculate Bill
F4: 1 | G4: Tap Equivalents per Month
B5: Gallons Used | D5: Base/TE | F5: 5000 | G5: Total Gallons used for Billing Period above
B6: =F5 -> 5000 | D6: =F4 -> 1 | F6: =D2*F3 -> 40.05 | G6: Total of bill for the above
B8: =G9 -> 0 | C8: Base | F8: H2O Chrge | G8: =D6*H8 -> 29 | H8: 29
B9: =B6-B8 -> 5000 | G9: =D6*H9 -> 0 | H9: 0 | I9: 2.11
B10: =G10 -> 4000 | C10: Tier 1 | D10: =IF(B9>B10,B10,B9) -> 4000 | F10: =IF(D10>0,D10/1000*I9) -> 8.44 | G10: =D6*H10 -> 4000 | H10: 4000 | I10: 2.61
B11: =B9-B10 -> 1000 | G11: =D$6*H11 -> 19000 | H11: 19000 | I11: 4.49
B12: =G11-G10 -> 15000 | C12: Tier 2 | D12: =IF(B11>B12,B12,B11) -> 1000 | F12: =IF(D12>0,D12/1000*I10) -> 2.61 | G12: =D$6*H12 -> 59000 | H12: 59000 | I12: 7.32
B13: =B11-B12 -> -14000 | G13: =D$6*H13 -> 129000 | H13: 129000 | I13: 21.97
B14: =G12-G11 -> 40000 | C14: Tier 3 | D14: =IF(B13>B14,B14,B13) -> -14000 | F14: =IF(D14>0,D14/1000*I11,0) -> 0 | G14: =D$6*H14 -> 0
B15: =B13-B14 -> -54000
B16: =G13-G12 -> 70000 | C16: Tier 4 | D16: =IF(B15>B16,B16,B15) -> -54000 | F16: =IF(D16>0,D16/1000*I12,0) -> 0
B17: =B15-B16 -> -124000
B18: =B17 -> -124000 | C18: Tier 5 | D18: =IF(B17>B18,B18,B17) -> -124000 | F18: =IF(D18>0,D18/1000*I13,0) -> 0
D19: =SUM(D10:D18)+B8 -> -187000

Sheet 5-8 Meters (hidden)
B1: 5/8" Meter Rate Calculation
C3: Bill | D3: =SUM(G9,F11:F19) -> 12419.78
B6: Gallons Used | D6: Base/TE
B7: 706000 | D7: 1
B9: =G10 -> 0 | C9: Base | F9: H2O Chrge | G9: =D7*H9 -> 29 | H9: ='annual combined rate calc'!H8 -> 29
B10: =B7-B9 -> 706000 | G10: =D7*H10 -> 0 | H10: 0
B11: =G11 -> 4000 | C11: Tier 1 | D11: =IF(B10>B11,B11,B10) -> 4000 | F11: =IF(D11>0,D11/1000*I11,0) -> 8.44 | G11: =D$7*H11 -> 4000 | H11: 4000 | I11: ='annual combined rate calc'!I9 -> 2.11
B12: =B10-B11 -> 702000 | G12: =D$7*H12 -> 19000 | H12: 19000 | I12: ='annual combined rate calc'!I10 -> 2.61
B13: =G12-G11 -> 15000 | C13: Tier 2 | D13: =IF(B12>B13,B13,B12) -> 15000 | F13: =IF(D13>0,D13/1000*I12,0) -> 39.15 | G13: =D$7*H13 -> 59000 | H13: 59000 | I13: ='annual combined rate calc'!I11 -> 4.49
B14: =B12-B13 -> 687000 | G14: =D$7*H14 -> 199000 | H14: 199000 | I14: ='annual combined rate calc'!I12 -> 7.32
B15: =G13-G12 -> 40000 | C15: Tier 3 | D15: =IF(B14>B15,B15,B14) -> 40000 | F15: =IF(D15>0,D15/1000*I13,0) -> 179.6 | G15: =D$7*H15 -> 0 | I15: ='annual combined rate calc'!I13 -> 21.97
B16: =B14-B15 -> 647000
B17: =G14-G13 -> 140000 | C17: Tier 4 | D17: =IF(B16>B17,B17,B16) -> 140000 | F17: =IF(D17>0,D17/1000*I14,0) -> 1024.8
B19: =B16-B17 -> 507000 | C19: Tier 5 | D19: =IF(B19>B19,B19,B19) -> 507000 | F19: =IF(D19>0,D19/1000*I15,0) -> 11138.79
D20: =SUM(D11:D19)+B9 -> 706000

Sheet 3-4" Meters (hidden)
B1: 3/4" Meter Rate Calculation
C3: Bill | D3: =SUM(G9,F11:F19) -> 39.27
B6: Gallons Used | D6: Base/TE
B7: 7000 | D7: 1
B9: =G10 -> 0 | C9: Base | F9: H2O Chrge | G9: =D7*H9 -> 23 | H9: 23
B10: =B7-B9 -> 7000 | G10: =D7*H10 -> 0 | H10: 0
B11: =G11 -> 4000 | C11: Tier 1 | D11: =IF(B10>B11,B11,B10) -> 4000 | F11: =IF(D11>0,D11/1000*I11,0) -> 8.44 | G11: =D$7*H11 -> 4000 | H11: ='5-8 Meters'!H11 -> 4000 | I11: ='5-8 Meters'!I11 -> 2.11
B12: =B10-B11 -> 3000 | G12: =D$7*H12 -> 19000 | H12: ='5-8 Meters'!H12 -> 19000 | I12: ='5-8 Meters'!I12 -> 2.61
B13: =G12-G11 -> 15000 | C13: Tier 2 | D13: =IF(B12>B13,B13,B12) -> 3000 | F13: =IF(D13>0,D13/1000*I12,0) -> 7.83 | G13: =D$7*H13 -> 59000 | H13: ='5-8 Meters'!H13 -> 59000 | I13: ='5-8 Meters'!I13 -> 4.49
B14: =B12-B13 -> -12000 | G14: =D$7*H14 -> 199000 | H14: ='5-8 Meters'!H14 -> 199000 | I14: ='5-8 Meters'!I14 -> 7.32
B15: =G13-G12 -> 40000 | C15: Tier 3 | D15: =IF(B14>B15,B15,B14) -> -12000 | F15: =IF(D15>0,D15/1000*I13,0) -> 0 | I15: ='5-8 Meters'!I15 -> 21.97
B16: =B14-B15 -> -52000
B17: =G14-G13 -> 140000 | C17: Tier 4 | D17: =IF(B16>B17,B17,B16) -> -52000 | F17: =IF(D17>0,D17/1000*I14,0) -> 0
B19: =B16-B17 -> -192000 | C19: Tier 5 | D19: =IF(B19>B19,B19,B19) -> -192000 | F19: =IF(D19>0,D19/1000*I15,0) -> 0
D20: =SUM(D11:D19)+B9 -> -249000

Sheet 1" Meter (hidden)
B1: 1" Meter Rate Calculation
C3: Bill | D3: =SUM(G9,F11:F19) -> 5211.84
B6: Gallons Used | D6: Base/TE
B7: 800000 | D7: 4
B9: =G10 -> 0 | C9: Base | F9: H2O Chrge | G9: =D7*H9 -> 116 | H9: ='5-8 Meters'!H9 -> 29
B10: =B7-B9 -> 800000 | G10: =D7*H10 -> 0 | H10: ='5-8 Meters'!H10 -> 0
B11: =G11 -> 16000 | C11: Tier 1 | D11: =IF(B10>B11,B11,B10) -> 16000 | F11: =IF(D11>0,D11/1000*I11,0) -> 33.76 | G11: =D$7*H11 -> 16000 | H11: ='5-8 Meters'!H11 -> 4000 | I11: ='5-8 Meters'!I11 -> 2.11
B12: =B10-B11 -> 784000 | G12: =D$7*H12 -> 76000 | H12: ='5-8 Meters'!H12 -> 19000 | I12: ='5-8 Meters'!I12 -> 2.61
B13: =G12-G11 -> 60000 | C13: Tier 2 | D13: =IF(B12>B13,B13,B12) -> 60000 | F13: =IF(D13>0,D13/1000*I12,0) -> 156.6 | G13: =D$7*H13 -> 236000 | H13: ='5-8 Meters'!H13 -> 59000 | I13: ='5-8 Meters'!I13 -> 4.49
B14: =B12-B13 -> 724000 | G14: =D$7*H14 -> 796000 | H14: ='5-8 Meters'!H14 -> 199000 | I14: ='5-8 Meters'!I14 -> 7.32
B15: =G13-G12 -> 160000 | C15: Tier 3 | D15: =IF(B14>B15,B15,B14) -> 160000 | F15: =IF(D15>0,D15/1000*I13,0) -> 718.4 | I15: ='5-8 Meters'!I15 -> 21.97
B16: =B14-B15 -> 564000
B17: =G14-G13 -> 560000 | C17: Tier 4 | D17: =IF(B16>B17,B17,B16) -> 560000 | F17: =IF(D17>0,D17/1000*I14,0) -> 4099.2
B19: =B16-B17 -> 4000 | C19: Tier 5 | D19: =IF(B19>B19,B19,B19) -> 4000 | F19: =IF(D19>0,D19/1000*I15,0) -> 87.88
D20: =SUM(D11:D19)+B9 -> 800000

Sheet 1.5" Meters (hidden)
B1: 1.5" Meter Rate Calculation
C3: Bill | D3: =SUM(G9,F11:F19) -> 11726.64
B6: Gallons Used | D6: Base/TE
B7: 1800000 | D7: 9
B9: =G10 -> 0 | C9: Base | F9: H2O Chrge | G9: =D7*H9 -> 261 | H9: ='5-8 Meters'!H9 -> 29
B10: =B7-B9 -> 1800000 | G10: =D7*H10 -> 0 | H10: ='5-8 Meters'!H10 -> 0
B11: =G11 -> 36000 | C11: Tier 1 | D11: =IF(B10>B11,B11,B10) -> 36000 | F11: =IF(D11>0,D11/1000*I11,0) -> 75.96 | G11: =D$7*H11 -> 36000 | H11: ='5-8 Meters'!H11 -> 4000 | I11: ='5-8 Meters'!I11 -> 2.11
B12: =B10-B11 -> 1764000 | G12: =D$7*H12 -> 171000 | H12: ='5-8 Meters'!H12 -> 19000 | I12: ='5-8 Meters'!I12 -> 2.61
B13: =G12-G11 -> 135000 | C13: Tier 2 | D13: =IF(B12>B13,B13,B12) -> 135000 | F13: =IF(D13>0,D13/1000*I12,0) -> 352.35 | G13: =D$7*H13 -> 531000 | H13: ='5-8 Meters'!H13 -> 59000 | I13: ='5-8 Meters'!I13 -> 4.49
B14: =B12-B13 -> 1629000 | G14: =D$7*H14 -> 1791000 | H14: ='5-8 Meters'!H14 -> 199000 | I14: ='5-8 Meters'!I14 -> 7.32
B15: =G13-G12 -> 360000 | C15: Tier 3 | D15: =IF(B14>B15,B15,B14) -> 360000 | F15: =IF(D15>0,D15/1000*I13,0) -> 1616.4 | I15: ='5-8 Meters'!I15 -> 21.97
B16: =B14-B15 -> 1269000
B17: =G14-G13 -> 1260000 | C17: Tier 4 | D17: =IF(B16>B17,B17,B16) -> 1260000 | F17: =IF(D17>0,D17/1000*I14,0) -> 9223.2
B19: =B16-B17 -> 9000 | C19: Tier 5 | D19: =IF(B19>B19,B19,B19) -> 9000 | F19: =IF(D19>0,D19/1000*I15,0) -> 197.73
D20: =SUM(D11:D19)+B9 -> 1800000

Sheet 2" Meters (hidden)
B1: 2" Meter Rate Calculation
C3: Bill | D3: =SUM(G9,F11:F19) -> 37.44
B6: Gallons Used | D6: Base/TE
B7: 4000 | D7: 1
B9: =G10 -> 0 | C9: Base | F9: H2O Chrge | G9: =D7*H9 -> 29 | H9: ='5-8 Meters'!H9 -> 29
B10: =B7-B9 -> 4000 | G10: =D7*H10 -> 0 | H10: ='5-8 Meters'!H10 -> 0
B11: =G11 -> 4000 | C11: Tier 1 | D11: =IF(B10>B11,B11,B10) -> 4000 | F11: =IF(D11>0,D11/1000*I11,0) -> 8.44 | G11: =D$7*H11 -> 4000 | H11: ='5-8 Meters'!H11 -> 4000 | I11: ='5-8 Meters'!I11 -> 2.11
B12: =B10-B11 -> 0 | G12: =D$7*H12 -> 19000 | H12: ='5-8 Meters'!H12 -> 19000 | I12: ='5-8 Meters'!I12 -> 2.61
B13: =G12-G11 -> 15000 | C13: Tier 2 | D13: =IF(B12>B13,B13,B12) -> 0 | F13: =IF(D13>0,D13/1000*I12,0) -> 0 | G13: =D$7*H13 -> 59000 | H13: ='5-8 Meters'!H13 -> 59000 | I13: ='5-8 Meters'!I13 -> 4.49
B14: =B12-B13 -> -15000 | G14: =D$7*H14 -> 199000 | H14: ='5-8 Meters'!H14 -> 199000 | I14: ='5-8 Meters'!I14 -> 7.32
B15: =G13-G12 -> 40000 | C15: Tier 3 | D15: =IF(B14>B15,B15,B14) -> -15000 | F15: =IF(D15>0,D15/1000*I13,0) -> 0 | I15: ='5-8 Meters'!I15 -> 21.97
B16: =B14-B15 -> -55000
B17: =G14-G13 -> 140000 | C17: Tier 4 | D17: =IF(B16>B17,B17,B16) -> -55000 | F17: =IF(D17>0,D17/1000*I14,0) -> 0
B19: =B16-B17 -> -195000 | C19: Tier 5 | D19: =IF(B19>B19,B19,B19) -> -195000 | F19: =IF(D19>0,D19/1000*I15,0) -> 0
D20: =SUM(D11:D19)+B9 -> -261000

Sheet Sheet2 (hidden)
